{"text_format":"2","workbook":"xlsx","n_sheets":1,"sheets":["Sheet1"],"not_rendered":{"charts":0,"images":1,"macros":0,"external_links":0,"defined_names":0,"comments":0,"pivot_tables":0},"unopened":[],"bounds":{"document_bytes":16777216,"sheet_cells":100000,"run_cost":"one","rows_first":2000,"rows_last":500,"rows_between":2000,"halvings":0,"cell_chars":16384,"cell_head_chars":4096},"cells_cut":0,"cells_raw":0,"read":"whole","date_system":"1900"}

{"sheet":"Sheet1","index":0,"n_rows":62,"n_cols":6,"rows_kept":62,"cut":false,"hidden":false,"merged":[[10,1,10,5],[11,1,11,5],[17,1,17,5],[18,1,18,5],[20,1,21,1],[20,2,20,5],[21,2,21,5],[57,1,57,5],[59,1,59,5],[61,1,61,5],[22,2,22,5],[23,1,23,5],[34,1,34,5],[40,1,40,5],[51,1,51,5],[53,1,53,5],[55,1,55,5]]}
[null,"                         ОСНОВНО УЧИЛИЩЕ „ПЕТКО РАЧЕВ СЛАВЕЙКОВ”"]
[null,"                         гр. Велико Търново, ул. „Освобождение” № 29"]
[null,"                         тел. 0887948282 – директор, 062/63-14-42 – зам.-директор, канцелария"]
[null,"                           e-mail: ouslaveikovvt@prsvt.org; www.ouslaveikov.weebly.com "]
[null,"                                                                                             –––––––––––––––––––––––––––––––––––––––––––––––––––––––––––––"]
[]
[null,"УТВЪРЖДАВАМ: ………………………"]
[null,"(Данка Борисова"]
[null,"Директор на ОУ „П. Р. Славейков“ - гр. В. Търново)"]
[]
[null,"УЧИЛИЩЕН УЧЕБЕН ПЛАН"]
[null,"за IIв клас"]
[]
[null,"Учебна година: 2020/2021"]
[null,"Форма на обучение: дневна"]
[null,"Организация на учебния ден: целодневна"]
[]
[null,"Училищният учебен план е приет на заседание на Педагогическия съвет от 09.07.2020 г., съгласуван е с Обществения съвет на 09.07.2019 г. и е утвърден със заповед на директора № 445А/10.07.2020 г."]
[null,"II. УЧЕБНИ ПРЕДМЕТИ, СЕДМИЧЕН И ГОДИШЕН БРОЙ НА УЧЕБНИТЕ ЧАСОВЕ"]
[]
[null,null,"Начален етап"]
[null,null," II клас"]
[null,"Учебни седмици",32.0]
[null,"Раздел А – задължителни учебни часове"]
[null,"Учебни предмети","Седмичен брой учебни часове ","Седмичен брой учебни часове Първи срок","Седмичен брой учебни часове Втори срок","Годишен брой учебни часове"]
[null,"Български език и литература",7.0,7.0,7.0,{"$f":"C26*32","v":224}]
[null,"Чужд език – английски език",2.0,2.0,2.0,64]
[null,"Математика",3.5,4.0,3.0,112]
[null,"Околен свят",1.0,1.0,1.0,32]
[null,"Музика",2.0,2.0,2.0,64]
[null,"Изобразително изкуство",1.5,1.0,2.0,48]
[null,"Технологии и предприемачество",1.0,1.0,1.0,32]
[null,"Физическо възпитание и спорт",2.0,2.0,2.0,64]
[null,"Общо за раздел А",{"$f":"SUM(C26:C33)","v":20},20,20,640]
[null,"Раздел Б – избираеми учебни часове"]
[null,"Общ брой часове за раздел Б",3.0,{"$f":"D37+D38+D39","v":3},3.0,{"$f":"C36*32","v":96}]
[null,"Български език и литература",2.0,2.0,2.0,64]
[null,"Математика",1.0,1.0,1.0,32]
[{"$nulls":5},0]
[null,"Общо за раздел А + раздел Б",{"$f":"C34+C36","v":23},23,23,736]
[null,"Раздел В – факултативни учебни часове"]
[null,"Общ брой часове за раздел В",{"$f":"C43+C44+C45+C46","v":3},3,3,{"$f":"C42*32","v":96}]
[null,"Хореография – народни танци",2.0,2.0,2.0,64]
[null,"Изобразително изкуство и керамика",1.0,1.0,1.0,32]
[]
[]
[null,"Общо за раздел А + раздел Б + раздел В",{"$f":"C40+C42","v":26},26,26,832]
[]
[]
[null,"ІІ. ПОЯСНИТЕЛНИ БЕЛЕЖКИ"]
[]
[null,"1. Училищният учебен план е разработен съгласно чл. 94, на Закона за училищното и предучилищното образование, чл. 14, чл. 16 и чл. 17 на Наредба № 4 от 30.11.2015г. за учебния план и Приложение № 1 към същата Наредба."]
[]
[null,"2. Всяка учебна седмица, освен часовете по физическо възпитание и спорт – ООП, се включва и по един учебен час за организиране и провеждане на спортни дейности чрез следните видове спорт: минибаскетбол, съгласно чл. 92, ал. 1 от ЗПУО, чл.14, ал. 3, т. 7 и ал. 5 от Наредба № 4/30.11.2015 за учебния план, Заповед № РД09-1111/15.08.2016 г. на министъра на образованието и науката за организиране и провеждане на спортни дейности."]
[]
[null,"3. Всяка учебна седмица включва и по един час на класа съгласно чл. 92, ал. 2 от ЗПУО, чл. 14, ал. 6 от Наредба № 4/30.11.2015 за учебния план. "]
[]
[null,"4. Обучението в училището се осъществява на едносменен режим, часовете от раздели А и Б се провеждат в сутрешен блок, а факултативните учебни часове и допълнителните часове по т. 2 и т. 3 – след приключване на задължителните и избираемите учебни часове или след часовете за самоподготовка от следобедния блок."]
[]
[null,"5. В една учебна седмица след края на учебните занятия или в няколко дни в рамките на учебното време се осъществяват проектни и творчески дейности (посещения на културни институции, спортни дейности, екскурзии, екипни проекти в класа, училището или между училищата и др.) съгласно Заповед на МОН № РД09-2118/ 28.08.2020 г. Ако са проведени до 31.05.2021 г., учебните занятия се удължават със съответния период."]
[]
[null,"6. Екземпляр от учебния план на хартиен носител се съхранява в дирекцията на училището, а в електронен вид е публикуван на сайта на училището."]